Workbook

Sheet Мугай Расчет объ.2019
H1: Приложение №1
A2: МБОУ "Мугайская ООШ"
A3: Нормативные затраты на оказание муниципальных услуг (выполнение работ) на 2019 год
A5: Наименование муниципальной услуги | B5: Базовый норматив затрат, непосредственно связанных с оказанием муниципальной услуги | C5: Базовый норматив затрат на общехозяйственные нужды | D5: Территориальный коэффициент | E5: Отраслевой коэффициент | F5: Базовый норматив затрат на оказание муниципальной услуги | G5: Объем муниципальной услуги | H5: Затраты на содержание имущества | I5: Итого нормативные затраты на оказание муниципальной услуги
B6: тыс. руб. за единицу | C6: тыс. руб. за единицу | F6: тыс. руб. за единицу | G6: единиц | H6: тыс. рублей | I6: тыс. рублей
A7: 1 | B7: 2 | C7: 3 | D7: 4 | E7: 5 | F7: 6 | G7: 7 | H7: 8 | I7: 9
A8: Реализация программ начального общего образования | B8: =3622.5/G8 -> 58.43 | C8: =7025.3/G8 -> 113.31 | D8: 1 | E8: 1 | F8: =B8+C8 -> 171.74 | G8: ='2019'!C9 -> 62 | H8: 1498.8 | I8: =(F8*G8)+H8 -> 12146.6
A9: Реализация общеобразовательных программ основного общего образования | B9: =6293/G9 -> 104.88 | C9: =6798.7/G9 -> 113.31 | D9: 1 | E9: 1 | F9: =B9+C9 -> 218.20 | G9: ='2019'!C10 -> 60 | H9: 1450.4 | I9: =(F9*G9)+H9 -> 14542.1
A10: Организация отдыха детей в каникулярное время | B10: =241.2/G10 -> 3.71 | C10: 0.00 | D10: 1 | E10: 1 | F10: =B10+C10 -> 3.71 | G10: ='2019'!C11 -> 65 | H10: 0 | I10: =(F10*G10)+H10 -> 241.2
A11: Организация питания обучающихся | B11: =762.8/G11 -> 7.13 | C11: 0.00 | D11: 1 | E11: 1 | F11: =B11+C11 -> 7.13 | G11: ='2019'!C12 -> 107 | H11: 0 | I11: =(F11*G11)+H11 -> 762.8
A12: Итого | B12: 105.30 | C12: 121.86 | D12: 1 | E12: 1 | F12: 227.16 | G12: 122.00 | H12: =H8+H9+H10+H11 -> 2949.20 | I12: =I8+I9+I10+I11 -> 27692.70
A13: на отчетный
A14: финансовый год
A18: [1] Определяется путем суммирования нормативных затрат, непосредственно связанных с оказанием муниципальной услуги (графа 2), и затрат на общехозяйственные нужды (графа 3)
A19: [2] Определяется путем суммирования произведения итогового объема нормативных затрат на оказание муниципальной услуги (графа 4) на объем муниципальной услуги (графа 5) с затратами на содержание имущества (графа 6)

Sheet расчет 2020
H1: Приложение №2
A2: МБОУ "Мугайская ООШ"
A3: Нормативные затраты на оказание муниципальных услуг (выполнением работ) на 2020 год
A5: Наименование муниципальной услуги | B5: Базовый норматив затрат, непосредственно связанных с оказанием муниципальной услуги | C5: Базовый норматив затрат на общехозяйственные нужды | D5: Территориальный коэффициент | E5: Отраслевой коэффициент | F5: Базовый норматив затрат на оказание муниципальной услуги | G5: Объем муниципальной услуги | H5: Затраты на содержание имущества | I5: Итого нормативные затраты на оказание муниципальной услуги
B6: тыс. руб. за единицу | C6: тыс. руб. за единицу | F6: тыс. руб. за единицу | G6: единиц | H6: тыс. рублей | I6: тыс. рублей
A7: 1 | B7: 2 | C7: 3 | D7: 4 | E7: 5 | F7: 6 | G7: 7 | H7: 8 | I7: 9
A8: Реализация программ начального общего образования | B8: =4298.4/G8 -> 74.11 | C8: =5952/G8 -> 102.62 | D8: 1 | E8: 1 | F8: =B8+C8 -> 176.73 | G8: ='2020'!C8 -> 58 | H8: 1606 | I8: =(F8*G8)+H8 -> 11856.4
A9: Реализация общеобразовательных программ основного общего образования | B9: =7843.7/G9 -> 147.99 | C9: =5438.9/G9 -> 102.62 | D9: 1 | E9: 1 | F9: =B9+C9 -> 250.62 | G9: ='2020'!C9 -> 53 | H9: 1467.6 | I9: =(F9*G9)+H9 -> 14750.2
A10: Организация отдыха детей в каникулярное время | B10: =312.9/G10 -> 4.97 | C10: 0.00 | D10: 1 | E10: 1 | F10: =B10+C10 -> 4.97 | G10: ='2020'!C10 -> 63 | H10: 0 | I10: =(F10*G10)+H10 -> 312.9
A11: Организация питания обучающихся | B11: =909.3/G11 -> 9.57 | C11: 0.00 | D11: 1 | E11: 1 | F11: =B11+C11 -> 9.57 | G11: ='2020'!C11 -> 95 | H11: 0 | I11: =(F11*G11)+H11 -> 909.3
A12: Итого | B12: 120.40 | C12: 102.62 | D12: 1 | E12: 1 | F12: 223.02 | G12: 111.00 | H12: =H8+H9+H10 -> 3073.60 | I12: =I8+I9+I10+I11 -> 27828.80
A13: на отчетный
A14: финансовый год
A18: [1] Определяется путем суммирования нормативных затрат, непосредственно связанных с оказанием муниципальной услуги (графа 2), и затрат на общехозяйственные нужды (графа 3)
A19: [2] Определяется путем суммирования произведения итогового объема нормативных затрат на оказание муниципальной услуги (графа 4) на объем муниципальной услуги (графа 5) с затратами на содержание имущества (графа 6)

Sheet расчет 2021
H1: Приложение №3
A2: МБОУ "Мугайская ООШ"
A3: Нормативные затраты на оказание муниципальных услуг (выполнение работ) на 2021 год
A4: Наименование муниципальной услуги | B4: Базовый норматив затрат, непосредственно связанных с оказанием муниципальной услуги | C4: Базовый норматив затрат на общехозяйственные нужды | D4: Территориальный коэффициент | E4: отраслевой коэффициент | F4: Базовый норматив затрат на оказание муниципальной услуги | G4: Объем муниципальной услуги | H4: Затраты на содержание имущества | I4: Итого нормативные затраты на оказание муниципальной услуги
B5: тыс. руб. за единицу | C5: тыс. руб. за единицу | F5: тыс. руб. за единицу | G5: единиц | H5: тыс. рублей | I5: тыс. рублей
A6: 1 | B6: 2 | C6: 3 | D6: 4 | E6: 5 | F6: 6 | G6: 7 | H6: 8 | I6: 9
A7: Реализация программ начального общего образования | B7: =4471.4/G7 -> 77.09 | C7: =6089.3/G7 -> 104.99 | D7: 1 | E7: 1 | F7: =B7+C7 -> 182.08 | G7: ='2021'!C8 -> 58 | H7: 1585.3 | I7: =(F7*G7)+H7 -> 12146
A8: Реализация общеобразовательных программ основного общего образования | B8: =8167.4/G8 -> 145.85 | C8: =5879.3/G8 -> 104.99 | D8: 1 | E8: 1 | F8: =B8+C8 -> 250.83 | G8: ='2021'!C9 -> 56 | H8: 1530.7 | I8: 15577.3
A9: Организация отдыха детей в каникулярное время | B9: =327.8/G9 -> 5.46 | C9: 0.00 | D9: 1 | E9: 1 | F9: =B9+C9 -> 5.46 | G9: ='2021'!C10 -> 60 | H9: 0 | I9: =(F9*G9)+H9 -> 327.8
A10: Организация питания обучающихся | B10: =909.3/G10 -> 9.28 | C10: 0.00 | D10: 1 | E10: 1 | F10: =B10+C10 -> 9.28 | G10: ='2021'!C11 -> 98 | H10: 0 | I10: =(F10*G10)+H10 -> 909.3
A11: Итого | B11: 121.71 | C11: 104.99 | D11: 1 | E11: 1 | F11: 226.70 | G11: 114.00 | H11: =H7+H8+H9+H10 -> 3116.00 | I11: =I7+I8+I9+I10 -> 28960.40
A12: на отчетный
A13: финансовый год
A17: [1] Определяется путем суммирования нормативных затрат, непосредственно связанных с оказанием муниципальной услуги (графа 2), и затрат на общехозяйственные нужды (графа 3)
A18: [2] Определяется путем суммирования произведения итогового объема нормативных затрат на оказание муниципальной услуги (графа 4) на объем муниципальной услуги (графа 5) с затратами на содержание имущества (графа 6)

Sheet 2019
A2: Приложение №4
A4: МБОУ "Мугайская ООШ"
A5: Распределение нормативных затрат на 2019г.
A7: наименование услуги | B7: доля в % | C7: кол. Учащ. | D7: нормативные затраты, непосредственно связанные с оказанием муниц.услуги | L7: Нормативные затраты на общехозяйственные нужды | U7: Затраты на содержание имущества | Y7: нормативные затраты на оказание услуг
D8: з/пл. за год + начисления учителей | F8: подвоз учащихся | G8: продукты питания | H8: учебные расходы | I8: интернет | K8: итого | L8: з/пл. за год + начисления прочего персонала | M8: услуги связи | N8: электроэнергия 90% | O8: Теплоэнергия 50% | P8: прочие ком. Услуги | Q8: расходы на содержание имущества | R8: прочие услуги | S8: приобретение материалов | T8: итого | U8: электроэнергия 10% | V8: Теплоэнергия 50% | W8: прочие расходы | X8: итого
A9: Реализация программ начального общего образования | B9: =C9*100/122/100 -> 50.8% | C9: 62 | D9: =3949.7-500 -> 3449.7 | H9: =H15*B9 -> 158.4 | I9: =I15*B9 -> 14.4 | K9: =SUM(D9:J9) -> 3622.5 | L9: =L15*B9 -> 2895.7 | M9: =M15*B9 -> 6.1 | N9: =N15*B9 -> 205.2 | O9: =O15*B9 -> 1474.481967 | P9: =P15*B9 -> 23.4 | Q9: =Q15*B9 -> 2085.6 | R9: =R15*B9 -> 116.9 | S9: =S15*B9 -> 218.0 | T9: =SUM(L9:S9) -> 7025.3 | U9: =U15*B9 -> 22.8 | V9: =V15*B9 -> 1474.481967 | W9: =W15*B9 -> 1.5 | X9: =SUM(U9:W9) -> 1498.8 | Y9: =K9+T9+X9 -> 12146.6
A10: Реализация общеобразовательных программ основного общего образования | B10: =C10*100/122/100 -> 49.2% | C10: 60 | D10: =7340.1-1250 -> 6090.1 | F10: 35.7 | H10: =H15*B10 -> 153.3 | I10: =I15*B10 -> 13.9 | K10: =SUM(D10:J10) -> 6293.0 | L10: =L15*B10 -> 2802.2 | M10: =M15*B10 -> 5.9 | N10: =N15*B10 -> 198.5 | O10: =O15*B10 -> 1426.918033 | P10: =P15*B10 -> 22.6 | Q10: =Q15*B10 -> 2018.4 | R10: =R15*B10 -> 113.1 | S10: =S15*B10 -> 211.0 | T10: =SUM(L10:S10) -> 6798.7 | U10: =U15*B10 -> 22.0 | V10: =V15*B10 -> 1426.918033 | W10: =W15*B10 -> 1.5 | X10: =SUM(U10:W10) -> 1450.4 | Y10: =K10+T10+X10 -> 14542.1
A11: организация отдыха детей в каникулярное время | C11: 65 | G11: =220.2-30.9 -> 189.3 | H11: 51.9 | K11: =SUM(D11:J11) -> 241.2 | T11: =SUM(L11:S11) -> 0.0 | X11: =SUM(U11:W11) -> 0.0 | Y11: =K11+T11+X11 -> 241.2
A12: Организация питания обучающихся | C12: 107 | G12: =909.3+66-212.5 -> 762.8 | K12: =SUM(D12:J12) -> 762.8 | X12: =SUM(U12:W12) -> 0.0 | Y12: =K12+T12+X12 -> 762.8
A13: итого | B13: =B9+B10+B11 -> 100.0% | C13: 122 | D13: =SUM(D9:D11) -> 9539.8 | E13: =SUM(E9:E11) -> 0 | F13: =SUM(F9:F11) -> 35.7 | G13: =SUM(G9:G12) -> 952.1 | H13: =SUM(H9:H11) -> 363.6 | I13: =SUM(I9:I11) -> 28.3 | J13: =SUM(J9:J11) -> 0 | K13: =SUM(K9:K12) -> 10919.5 | L13: =SUM(L9:L11) -> 5697.9 | M13: 12 | N13: 403.7 | O13: =SUM(O9:O11) -> 2901.4 | P13: 46 | Q13: 4104 | R13: 230 | S13: 429 | T13: 13824.0 | U13: 44.8 | V13: 2901.4 | W13: 3 | X13: 2949.2 | Y13: =SUM(Y9:Y12) -> 27692.7
F15: 26 | G15: 325.8 | H15: 311.7 | I15: 28.3 | L15: =6738.1-25.5-717.7-297 -> 5697.9 | M15: 12 | N15: 403.7 | O15: 2901.4 | P15: 46 | Q15: 4104 | R15: 230 | S15: =432-3 -> 429 | U15: 44.8 | V15: 2901.4 | W15: 3
D16: =D13+L15 -> 15237.7
Y17: 30660.3
Y18: =Y17-Y13 -> 2967.6

Sheet 2020
A1: Приложение №5
A2: Приложение №5
A3: МБОУ "Мугайская ООШ"
A4: Распределение нормативных затрат на 2020г.
A6: наименование услуги | B6: доля в % | C6: кол. Учащ. | D6: нормативные затраты, непосредственно связанные с оказанием муниц.услуги | L6: Нормативные затраты на общехозяйственные нужды | U6: Затраты на содержание имущества | Y6: нормативные затраты на оказание услуг
D7: з/пл. за год + начисления учителей | F7: подвоз учащихся | G7: продукты питания | H7: учебные расходы | I7: интернет | K7: итого | L7: з/пл. за год + начисления прочего персонала | M7: услуги связи | N7: электроэнергия 90% | O7: Теплоэнергия 50% | P7: прочие ком. Услуги | Q7: расходы на содержание имущества | R7: прочие услуги | S7: приобретение материалов | T7: итого | U7: электроэнергия 10% | V7: Теплоэнергия 50% | W7: прочие расходы | X7: итого
A8: Реализация программ начального общего образования | B8: =C8*100/111/100 -> 52.3% | C8: 58 | D8: 4107.7 | H8: =H14*B8 -> 175.9 | I8: =I14*B8 -> 14.8 | K8: =SUM(D8:J8) -> 4298.4 | L8: =L14*B8 -> 3671.3 | M8: =M14*B8 -> 6.8 | N8: =N14*B8 -> 210.9 | O8: =O14*B8 -> 1582.59 | P8: =P14*B8 -> 24.0 | Q8: =Q14*B8 -> 165.6 | R8: =R14*B8 -> 146.3 | S8: =S14*B8 -> 144.4 | T8: =SUM(L8:S8) -> 5952.0 | U8: =U14*B8 -> 23.4 | V8: =V14*B8 -> 1582.59009 | W8: =W14*B8 -> 0.0 | X8: =SUM(U8:W8) -> 1606.0 | Y8: =K8+T8+X8 -> 11856.4
A9: Реализация общеобразовательных программ основного общего образования | B9: =C9*100/111/100 -> 47.7% | C9: 53 | D9: 7633.7 | F9: 35.7 | H9: =H14*B9 -> 160.8 | I9: =I14*B9 -> 13.5 | K9: =SUM(D9:J9) -> 7843.7 | L9: =L14*B9 -> 3354.8 | M9: =M14*B9 -> 6.2 | N9: =N14*B9 -> 192.8 | O9: =O14*B9 -> 1446.16 | P9: =P14*B9 -> 22.0 | Q9: =Q14*B9 -> 151.4 | R9: =R14*B9 -> 133.7 | S9: =S14*B9 -> 132.0 | T9: =SUM(L9:S9) -> 5438.9 | U9: =U14*B9 -> 21.4 | V9: =V14*B9 -> 1446.15991 | W9: =W14*B9 -> 0.0 | X9: =SUM(U9:W9) -> 1467.6 | Y9: =K9+T9+X9 -> 14750.2
A10: организация отдыха детей в каникулярное время | C10: 63 | G10: 259.1 | H10: 53.8 | K10: =SUM(D10:J10) -> 312.9 | T10: =SUM(L10:S10) -> 0.0 | X10: =SUM(U10:W10) -> 0.0 | Y10: =K10+T10+X10 -> 312.9
A11: Организация питания обучающихся | C11: 95 | G11: 909.3 | K11: =SUM(D11:J11) -> 909.3 | X11: =SUM(U11:W11) -> 0.0 | Y11: =K11+T11+X11 -> 909.3
A12: итого | B12: =B8+B9+B10 -> 100.0% | C12: 111 | D12: =D8+D9 -> 11741.4 | E12: =SUM(E8:E10) -> 0 | F12: 31.1 | G12: =SUM(G8:G11) -> 1168.4 | H12: =SUM(H8:H10) -> 390.5 | I12: 28.3 | J12: 0 | K12: =SUM(K8:K11) -> 13364.3 | L12: =SUM(L8:L10) -> 7026.1 | M12: 13 | N12: 403.7 | O12: 3028.75 | P12: 46 | Q12: 317 | R12: 280 | S12: 276.4 | T12: 11391.0 | U12: 44.8 | V12: 3028.75 | W12: 0 | X12: 3073.6 | Y12: =SUM(Y8:Y11) -> 27828.8
F14: 24.3 | G14: 783.1 | H14: 336.7 | I14: 28.3 | L14: 7026.1 | M14: 13 | N14: 403.7 | O14: 3028.75 | P14: 46 | Q14: 317 | R14: 280 | S14: 276.4 | U14: 44.8 | V14: 3028.75 | W14: 0
Y16: 27828.8
D17: 18686.8 | N17: =N12+O12+P12+U12+V12 -> 6552 | Y17: =Y16-Y12 -> 0

Sheet 2021
A1: Приложение №6
A3: МБОУ "Мугайская ООШ"
A4: Распределение нормативных затрат на 2021г.
A6: наименование услуги | B6: доля в % | C6: кол. Учащ. | D6: нормативные затраты, непосредственно связанные с оказанием муниц.услуги | L6: Нормативные затраты на общехозяйственные нужды | U6: Затраты на содержание имущества | Y6: нормативные затраты на оказание услуг
D7: з/пл. за год + начисления учителей | F7: подвоз учащихся | G7: продукты питания | H7: учебные расходы | I7: интернет | K7: итого | L7: з/пл. за год + начисления прочего персонала | M7: услуги связи | N7: электроэнергия 90% | O7: Теплоэнергия 50% | P7: прочие ком. Услуги | Q7: расходы на содержание имущества | R7: прочие услуги | S7: приобретение материалов | T7: итого | U7: электроэнергия 10% | V7: Теплоэнергия 50% | W7: прочие расходы | X7: итого
A8: Реализация программ начального общего образования | B8: =C8*100/114/100 -> 50.9% | C8: 58 | D8: 4272 | H8: =H14*B8 -> 185.0 | I8: =I14*B8 -> 14.4 | K8: =SUM(D8:J8) -> 4471.4 | L8: =L14*B8 -> 3837.2 | M8: =M14*B8 -> 6.6 | N8: 206.1 | O8: =O14*B8 -> 1562.438596 | P8: =P14*B8 -> 25.4 | Q8: =Q14*B8 -> 167.9 | R8: =R14*B8 -> 142.5 | S8: =S14*B8 -> 141.2 | T8: =SUM(L8:S8) -> 6089.3 | U8: =U14*B8 -> 22.9 | V8: =V14*B8 -> 1562.438596 | W8: =W14*B8 -> 0.0 | X8: =SUM(U8:W8) -> 1585.3 | Y8: 12146.0
A9: Реализация общеобразовательных программ основного общего образования | B9: =C9*100/114/100 -> 49.1% | C9: 56 | D9: 7939.1 | F9: 35.7 | H9: =H14*B9 -> 178.7 | I9: =I14*B9 -> 13.9 | K9: =SUM(D9:J9) -> 8167.4 | L9: =L14*B9 -> 3704.8 | M9: =M14*B9 -> 6.4 | N9: =N14*B9 -> 198.9 | O9: =O14*B9 -> 1508.561404 | P9: =P14*B9 -> 24.6 | Q9: =Q14*B9 -> 162.1 | R9: =R14*B9 -> 137.5 | S9: =S14*B9 -> 136.3 | T9: =SUM(L9:S9) -> 5879.3 | U9: =U14*B9 -> 22.1 | V9: =V14*B9 -> 1508.561404 | W9: =W14*B9 -> 0.0 | X9: =SUM(U9:W9) -> 1530.7 | Y9: =K9+T9+X9 -> 15577.3
A10: организация отдыха детей в каникулярное время | C10: 60 | G10: 269.3 | H10: 58.5 | K10: =SUM(D10:J10) -> 327.8 | L10: 0.0 | T10: =SUM(L10:S10) -> 0.0 | X10: =SUM(U10:W10) -> 0.0 | Y10: =K10+T10+X10 -> 327.8
A11: Организация питания обучающихся | C11: 98 | G11: 909.3 | K11: =SUM(D11:J11) -> 909.3 | X11: =SUM(U11:W11) -> 0.0 | Y11: =K11+T11+X11 -> 909.3
A12: итого | B12: =B8+B9+B10 -> 100.0% | C12: 114 | D12: =SUM(D8:D10) -> 12211.1 | E12: =SUM(E8:E10) -> 0 | F12: =SUM(F8:F10) -> 35.7 | G12: =SUM(G8:G11) -> 1178.6 | H12: =SUM(H8:H10) -> 422.2 | I12: 28.3 | J12: 0 | K12: =SUM(K8:K11) -> 13875.9 | L12: =SUM(L8:L10) -> 7542.0 | M12: 13 | N12: 405.0473684 | O12: 3071 | P12: 50 | Q12: 330 | R12: 280 | S12: 277.5 | T12: 11968.5 | U12: 45 | V12: 3071 | W12: 0 | X12: 3116.0 | Y12: =SUM(Y8:Y11) -> 28960.4
G14: 764.8 | H14: 363.7 | I14: 28.3 | L14: 7542 | M14: 13 | N14: 405 | O14: 3071 | P14: 50 | Q14: 330 | R14: 280 | S14: 277.5 | U14: 45 | V14: 3071 | W14: 0
D16: 19753.1 | Y16: 28960.4
L17: =N14+O14+P14+U14+V14 -> 6642 | Y17: =Y16-Y12 -> 0.008771929824
